fUSD/lending_fUSD_20251001
["ID","MTS","AMOUNT","RATE_DAILY","PERIOD"]
[388689278,1759319442573,-829.27,0.00021917,2]
[388689279,1759319442583,-500.0,0.00021917,2]
[388689281,1759319442594,-992.64,0.00021917,2]
[388689283,1759319442603,-2083.91,0.00021917,2]
[388689285,1759319442612,-500.0,0.00021917,2]
[388689287,1759319442622,-500.0,0.00021917,2]
[388689290,1759319442632,-569.94,0.00021917,2]
[388689291,1759319442641,-1504.59,0.00021917,2]
[388689293,1759319442650,-500.0,0.00021917,2]
[388689295,1759319442660,-213.14375018,0.00021917,2]
[388689297,1759319442672,-555.02,0.00021917,2]
[388689300,1759319442682,-1770.74,0.00021917,2]
[388689302,1759319442692,-500.0,0.00021917,2]
[388689304,1759319442701,-536.24,0.00021917,2]
[388689306,1759319442711,-500.0,0.00021917,2]
[388689308,1759319442721,-532.64,0.00021917,2]
[388689310,1759319442730,-500.0,0.00021917,2]
[388689312,1759319442740,-3446.11,0.00021917,2]
[388689314,1759319442750,-654.38,0.00021917,2]
[388689316,1759319442759,-500.0,0.00021917,2]
[388689318,1759319442769,-2018.68,0.00021917,2]
[388689320,1759319442778,-500.0,0.00021917,2]
[388689322,1759319442788,-1708.78,0.00021917,2]
[388689324,1759319442797,-500.0,0.00021917,2]
[388689326,1759319442807,-699.77,0.00021917,2]
[388689328,1759319442818,-509.62,0.00021917,2]
[388689330,1759319442829,-801.9,0.00021917,2]
[388689332,1759319442838,-1128.15,0.00021917,2]
[388689334,1759319442848,-1995.04,0.00021917,2]
[388689336,1759319442857,-1756.13,0.00021917,2]
[388689338,1759319442867,-2593.93,0.00021917,2]
[388689340,1759319442875,-1701.5,0.00021917,2]
[388689342,1759319442885,-500.0,0.00021917,2]
[388689344,1759319442894,-1001.94,0.00021917,2]
[388689346,1759319442903,-2688.69,0.00021917,2]
[388689348,1759319442912,-500.0,0.00021917,2]
[388689350,1759319442924,-3010.11,0.00021917,2]
[388689352,1759319442933,-500.0,0.00021917,2]
[388689354,1759319442942,-2927.04,0.00021917,2]
[388689356,1759319442952,-500.0,0.00021917,2]
[388689358,1759319442961,-2480.54,0.00021917,2]
[388689360,1759319442969,-738.62,0.00021917,2]
[388689362,1759319442978,-500.0,0.00021917,2]
[388689364,1759319442987,-500.0,0.00021917,2]
[388689366,1759319442997,-5198.48,0.00021917,2]
[388689368,1759319443007,-1205.23,0.00021917,2]
[388689370,1759319443016,-2076.48,0.00021917,2]
[388689372,1759319443024,-1800.49,0.00021917,2]
[388689374,1759319443034,-500.0,0.00021917,2]
[388689377,1759319443043,-1363.92,0.00021917,2]
[388689379,1759319443052,-906.73,0.00021917,2]
[388689381,1759319443062,-1612.52,0.00021917,2]
[388689384,1759319443072,-500.0,0.00021917,2]
[388689386,1759319443081,-2066.96,0.00021917,2]
[388689388,1759319443090,-2697.42,0.00021917,2]
[388689390,1759319443099,-500.0,0.00021917,2]
[388689392,1759319443108,-1642.02,0.00021917,2]
[388689394,1759319443118,-1841.34,0.00021917,2]
[388689396,1759319443130,-500.0,0.00021917,2]
[388689397,1759319443140,-500.0,0.00021917,2]
[388689400,1759319443149,-500.0,0.00021917,2]
[388689402,1759319443159,-500.0,0.00021917,2]
[388689403,1759319443170,-2712.16,0.00021917,2]
[388689405,1759319443179,-2424.64,0.00021917,2]
[388689407,1759319443188,-1522.9,0.00021917,2]
[388689409,1759319443198,-944.04,0.00021917,2]
[388689411,1759319443207,-1334.22,0.00021917,2]
[388689413,1759319443216,-682.21,0.00021917,2]
[388689416,1759319443225,-1853.79,0.00021917,2]
[388689418,1759319443234,-531.63,0.00021917,2]
[388689421,1759319443244,-500.0,0.00021917,2]
[388689426,1759319443255,-588.34,0.00021917,2]
[388689428,1759319443265,-500.0,0.00021917,2]
[388689431,1759319443274,-2000.77,0.00021917,2]
[388689434,1759319443283,-2042.88,0.00021917,2]
[388689438,1759319443293,-2301.12,0.00021917,2]
[388689441,1759319443303,-824.34,0.00021917,2]
[388689443,1759319443312,-2002.53,0.00021917,2]
[388689445,1759319443322,-500.0,0.00021917,2]
[388689447,1759319443331,-1723.07,0.00021917,2]
[388689449,1759319443340,-500.0,0.00021917,2]
[388689451,1759319443349,-1795.18,0.00021917,2]
[388689453,1759319443359,-500.0,0.00021917,2]
[388689455,1759319443367,-1879.83,0.00021917,2]
[388689457,1759319443376,-894.85,0.00021917,2]
[388689459,1759319443385,-500.0,0.00021917,2]
[388689461,1759319443394,-500.0,0.00021917,2]
[388689463,1759319443403,-2706.82,0.00021917,2]
[388689465,1759319443412,-500.0,0.00021917,2]
[388689466,1759319443422,-500.0,0.00021917,2]
[388689468,1759319443431,-2303.15,0.00021917,2]
[388689470,1759319443441,-868.56,0.00021917,2]
[388689472,1759319443450,-500.0,0.00021917,2]
[388689475,1759319443460,-500.0,0.00021917,2]
[388689477,1759319443469,-500.0,0.00021917,2]
[388689479,1759319443478,-2036.18,0.00021917,2]
[388689481,1759319443488,-2226.72,0.00021917,2]
[388689483,1759319443497,-500.0,0.00021917,2]
[388689485,1759319443506,-1822.08,0.00021917,2]
[388689487,1759319443515,-1936.75,0.00021917,2]
[388689489,1759319443524,-2763.12,0.00021917,2]
[388689491,1759319443533,-500.0,0.00021917,2]
[388689493,1759319443542,-500.0,0.00021917,2]
[388689495,1759319443551,-1596.94,0.00021917,2]
[388689497,1759319443561,-2052.59,0.00021917,2]
[388689499,1759319443570,-773.11,0.00021917,2]
[388689501,1759319443579,-969.51,0.00021917,2]
[388689503,1759319443589,-1504.56,0.00021917,2]
[388689505,1759319443598,-2618.43,0.00021917,2]
[388689507,1759319443607,-563.91,0.00021917,2]
[388689509,1759319443616,-2487.73,0.00021917,2]
[388689511,1759319443626,-588.8,0.00021917,2]
[388689513,1759319443635,-689.99,0.00021917,2]
[388689515,1759319443645,-1644.11,0.00021917,2]
[388689517,1759319443655,-2065.32,0.00021917,2]
[388689519,1759319443664,-1978.08,0.00021917,2]
[388689521,1759319443674,-2614.19,0.00021917,2]
[388689523,1759319443683,-500.0,0.00021917,2]
[388689525,1759319443692,-500.0,0.00021917,2]
[388689527,1759319443701,-1633.32,0.00021917,2]
[388689529,1759319443711,-2923.59,0.00021917,2]
[388689531,1759319443720,-1241.37,0.00021917,2]
[388689533,1759319443729,-2334.15,0.00021917,2]
[388689535,1759319443737,-500.0,0.00021917,2]
[388689537,1759319443747,-508.99,0.00021917,2]
[388689539,1759319443758,-991.83,0.00021917,2]
[388689540,1759319443766,-1279.2,0.00021917,2]
[388689542,1759319443775,-2179.4,0.00021917,2]
[388689544,1759319443784,-500.0,0.00021917,2]
[388689546,1759319443793,-1385.04,0.00021917,2]
[388689548,1759319443802,-500.0,0.00021917,2]
[388689550,1759319443811,-500.0,0.00021917,2]
[388689553,1759319443821,-522.05,0.00021917,2]
[388689555,1759319443831,-500.0,0.00021917,2]
[388689557,1759319443839,-2421.81,0.00021917,2]
[388689559,1759319443848,-1458.67,0.00021917,2]
[388689561,1759319443857,-1238.61,0.00021917,2]
[388689563,1759319443867,-500.0,0.00021917,2]
[388689565,1759319443876,-2562.26,0.00021917,2]
[388689567,1759319443885,-500.0,0.00021917,2]
[388689568,1759319443895,-500.0,0.00021917,2]
[388689570,1759319443904,-815.74,0.00021917,2]
[388689572,1759319443913,-1101.19,0.00021917,2]
[388689574,1759319443923,-500.0,0.00021917,2]
[388689576,1759319443933,-611.17,0.00021917,2]
[388689578,1759319443942,-1073.61,0.00021917,2]
[388689580,1759319443951,-1089.37,0.00021917,2]
[388689582,1759319443960,-500.0,0.00021917,2]
[388689584,1759319443969,-504.66,0.00021917,2]
[388689586,1759319443978,-1594.8,0.00021917,2]
[388689588,1759319443987,-500.0,0.00021917,2]
[388689590,1759319443996,-607.9,0.00021917,2]
[388689592,1759319444005,-301.04246626,0.00021917,2]
[388689594,1759319444015,-1536.68,0.00021917,2]
[388689596,1759319444024,-500.0,0.00021917,2]
[388689598,1759319444033,-500.0,0.00021917,2]
[388689600,1759319444042,-1311.94,0.00021917,2]
[388689602,1759319444051,-1068.09,0.00021917,2]
[388689605,1759319444061,-1915.85,0.00021917,2]
[388689607,1759319444071,-1915.25,0.00021917,2]
[388689608,1759319444079,-500.0,0.00021917,2]
[388689611,1759319444089,-1360.18,0.00021917,2]
[388689613,1759319444098,-629.2,0.00021917,2]
[388689615,1759319444106,-371.84341347,0.00021917,2]
[388689617,1759319444116,-1465.21,0.00021917,2]
[388689619,1759319444130,-2204.19,0.00021917,2]
[388689621,1759319444138,-1768.02,0.00021917,2]
[388689623,1759319444147,-232.99452215,0.00021917,2]
[388689625,1759319444157,-2172.57,0.00021917,2]
[388689627,1759319444168,-500.0,0.00021917,2]
[388689629,1759319444177,-1095.38,0.00021917,2]
[388689631,1759319444186,-500.0,0.00021917,2]
[388689633,1759319444195,-500.0,0.00021917,2]
[388689635,1759319444205,-1592.42,0.00021917,2]
[388689637,1759319444214,-1532.71,0.00021917,2]
[388689639,1759319444223,-500.0,0.00021917,2]
[388689641,1759319444232,-617.41,0.00021917,2]
[388689643,1759319444240,-651.98,0.00021917,2]
[388689645,1759319444249,-1505.52,0.00021917,2]
[388689647,1759319444257,-1984.38,0.00021917,2]
[388689649,1759319444267,-752.97,0.00021917,2]
[388689650,1759319444275,-1207.73,0.00021917,2]
[388689653,1759319444285,-500.0,0.00021917,2]
[388689655,1759319444294,-1783.67,0.00021917,2]
[388689657,1759319444304,-594.41,0.00021917,2]
[388689659,1759319444312,-509.65,0.00021917,2]
[388689661,1759319444322,-1180.06,0.00021917,2]
[388689663,1759319444330,-948.91,0.00021917,2]
[388689665,1759319444339,-1153.59,0.00021917,2]
[388689667,1759319444348,-2159.15,0.00021917,2]
[388689669,1759319444357,-1160.23,0.00021917,2]
[388689671,1759319444366,-554.15,0.00021917,2]
[388689673,1759319444375,-500.0,0.00021917,2]
[388689675,1759319444384,-632.72,0.00021917,2]
[388689677,1759319444394,-1756.24,0.00021917,2]
[388689679,1759319444403,-1273.12,0.00021917,2]
[388689681,1759319444412,-500.0,0.00021917,2]
[388689683,1759319444423,-1270.89,0.00021917,2]
[388689685,1759319444432,-3097.22,0.00021917,2]
[388689687,1759319444441,-2257.99,0.00021917,2]
[388689689,1759319444450,-1271.6,0.00021917,2]
[388689691,1759319444459,-893.47,0.00021917,2]
[388689693,1759319444468,-806.46,0.00021917,2]
[388689695,1759319444477,-1385.28,0.00021917,2]
[388689697,1759319444486,-646.97,0.00021917,2]
[388689698,1759319444495,-547.17,0.00021917,2]
[388689700,1759319444504,-520.08,0.00021917,2]
[388689702,1759319444514,-885.03,0.00021917,2]
[388689704,1759319444523,-300.0,0.00021917,2]
[388689706,1759319444532,-500.0,0.00021917,2]
[388689708,1759319444542,-782.77,0.00021917,2]
[388689710,1759319444551,-500.0,0.00021917,2]
[388689712,1759319444559,-1786.54,0.00021917,2]
[388689714,1759319444568,-500.0,0.00021917,2]
[388689716,1759319444578,-500.0,0.00021917,2]
[388689718,1759319444587,-500.0,0.00021917,2]
[388689720,1759319444596,-500.0,0.00021917,2]
[388689722,1759319444605,-2649.12,0.00021917,2]
[388689724,1759319444615,-500.0,0.00021917,2]
[388689726,1759319444624,-2013.65,0.00021917,2]
[388689728,1759319444633,-570.3,0.00021917,2]
[388689730,1759319444642,-2577.7,0.00021917,2]
[388689732,1759319444651,-1111.27,0.00021917,2]
[388689734,1759319444660,-1406.3,0.00021917,2]
[388689736,1759319444670,-591.49,0.00021917,2]
[388689738,1759319444678,-500.0,0.00021917,2]
[388689740,1759319444688,-568.97,0.00021917,2]
[388689742,1759319444697,-717.16,0.00021917,2]
[388689744,1759319444706,-817.95,0.00021917,2]
[388689746,1759319444715,-500.0,0.00021917,2]
[388689748,1759319444725,-3064.15,0.00021917,2]
[388689750,1759319444734,-1545.87,0.00021917,2]
[388689752,1759319444743,-500.0,0.00021917,2]
[388689754,1759319444752,-1161.76,0.00021917,2]
[388689756,1759319444761,-500.0,0.00021917,2]
[388689758,1759319444770,-500.0,0.00021917,2]
[388689760,1759319444779,-1627.05,0.00021917,2]
[388689762,1759319444789,-828.34,0.00021917,2]
[388689764,1759319444798,-1386.44,0.00021917,2]
[388689766,1759319444807,-500.0,0.00021917,2]
[388689768,1759319444815,-522.66,0.00021917,2]
[388689770,1759319444824,-982.87,0.00021917,2]
[388689772,1759319444833,-663.17,0.00021917,2]
[388689774,1759319444842,-760.61,0.00021917,2]
[388689776,1759319444852,-562.48,0.00021917,2]
[388689778,1759319444862,-500.0,0.00021917,2]
[388689780,1759319444871,-2736.28,0.00021917,2]
[388689782,1759319444880,-500.0,0.00021917,2]
[388689784,1759319444889,-500.0,0.00021917,2]
[388689786,1759319444899,-500.0,0.00021917,2]
[388689788,1759319444907,-500.0,0.00021917,2]
[388689791,1759319444917,-2855.6,0.00021917,2]
[388689793,1759319444927,-1072.12,0.00021917,2]
[388689795,1759319444936,-500.0,0.00021917,2]
[388689797,1759319444945,-1430.61,0.00021917,2]
[388689798,1759319444954,-500.0,0.00021917,2]
[388689800,1759319444964,-2165.49,0.00021917,2]
[388689802,1759319444973,-500.0,0.00021917,2]
[388689804,1759319444982,-2007.79,0.00021917,2]
[388689807,1759319444991,-500.0,0.00021917,2]
[388689809,1759319445001,-500.0,0.00021917,2]
[388689811,1759319445010,-500.0,0.00021917,2]
[388689813,1759319445019,-500.0,0.00021917,2]
[388689815,1759319445028,-1472.06,0.00021917,2]
[388689817,1759319445037,-500.0,0.00021917,2]
[388689819,1759319445045,-1070.15,0.00021917,2]
[388689821,1759319445054,-500.0,0.00021917,2]
[388689823,1759319445064,-500.0,0.00021917,2]
[388689825,1759319445072,-613.26,0.00021917,2]
[388689827,1759319445082,-500.0,0.00021917,2]
[388689829,1759319445090,-500.0,0.00021917,2]
[388689831,1759319445099,-3232.28,0.00021917,2]
[388689833,1759319445108,-500.0,0.00021917,2]
[388689834,1759319445117,-1645.63,0.00021917,2]
[388689836,1759319445131,-500.0,0.00021917,2]
[388689838,1759319445140,-500.0,0.00021917,2]
[388689840,1759319445149,-2367.6,0.00021917,2]
[388689842,1759319445158,-500.0,0.00021917,2]
[388689844,1759319445167,-500.0,0.00021917,2]
[388689846,1759319445176,-500.0,0.00021917,2]
[388689848,1759319445185,-835.09,0.00021917,2]
[388689850,1759319445194,-500.0,0.00021917,2]
[388689852,1759319445203,-1089.5,0.00021917,2]
[388689854,1759319445213,-500.0,0.00021917,2]
[388689856,1759319445223,-554.32,0.00021917,2]
[388689858,1759319445232,-532.36,0.00021917,2]
[388689859,1759319445241,-1005.84,0.00021917,2]
[388689860,1759319445249,-1844.92,0.00021917,2]
[388689861,1759319445258,-500.0,0.00021917,2]
[388689862,1759319445266,-500.0,0.00021917,2]
[388689863,1759319445275,-500.0,0.00021917,2]
[388689864,1759319445284,-500.0,0.00021917,2]
[388689865,1759319445293,-2451.1,0.00021917,2]
[388689866,1759319445301,-344.32842375,0.00021917,2]
[388689867,1759319445310,-2323.55,0.00021917,2]
[388689868,1759319445319,-500.0,0.00021917,2]
[388689869,1759319445327,-643.78,0.00021917,2]
[388689870,1759319445336,-553.21,0.00021917,2]
[388689871,1759319445345,-269.13388566,0.00021917,2]
[388689872,1759319445353,-500.0,0.00021917,2]
[388689873,1759319445362,-2339.55,0.00021917,2]
[388689874,1759319445371,-619.54,0.00021917,2]
[388689876,1759319445380,-500.0,0.00021917,2]
[388689878,1759319445389,-844.34,0.00021917,2]
[388689880,1759319445399,-2270.09,0.00021917,2]
[388689882,1759319445408,-500.0,0.00021917,2]
[388689884,1759319445418,-525.06,0.00021917,2]
[388689886,1759319445427,-500.0,0.00021917,2]
[388689888,1759319445436,-546.61,0.00021917,2]
[388689890,1759319445445,-991.39,0.00021917,2]
[388689892,1759319445454,-500.0,0.00021917,2]
[388689894,1759319445463,-2527.06,0.00021917,2]
[388689896,1759319445472,-500.0,0.00021917,2]
[388689898,1759319445481,-500.0,0.00021917,2]
[388689900,1759319445490,-700.65,0.00021917,2]
[388689902,1759319445499,-500.0,0.00021917,2]
[388689904,1759319445509,-1808.77,0.00021917,2]
[388689906,1759319445518,-500.0,0.00021917,2]
[388689908,1759319445527,-844.96,0.00021917,2]
[388689910,1759319445536,-500.0,0.00021917,2]
[388689912,1759319445545,-500.0,0.00021917,2]
[388689914,1759319445554,-500.0,0.00021917,2]
[388689916,1759319445563,-500.0,0.00021917,2]
[388689918,1759319445573,-3252.89,0.00021917,2]
[388689920,1759319445582,-2266.01,0.00021917,2]
[388689921,1759319445591,-2136.66,0.00021917,2]
[388689924,1759319445601,-500.0,0.00021917,2]
[388689926,1759319445611,-507.36,0.00021917,2]
[388689928,1759319445623,-500.0,0.00021917,2]
[388689930,1759319445633,-500.0,0.00021917,2]
[388689931,1759319445643,-500.0,0.00021917,2]
[388689934,1759319445653,-500.0,0.00021917,2]
[388689936,1759319445662,-673.88,0.00021917,2]
[388689938,1759319445672,-634.64,0.00021917,2]
[388689940,1759319445681,-2449.69,0.00021917,2]
[388689942,1759319445691,-3481.1,0.00021917,2]
[388689944,1759319445700,-500.0,0.00021917,2]
[388689946,1759319445709,-2813.26,0.00021917,2]
[388689948,1759319445718,-2093.65,0.00021917,2]
[388689950,1759319445727,-500.0,0.00021917,2]
[388689952,1759319445735,-1423.98,0.00021917,2]
[388689954,1759319445744,-548.27,0.00021917,2]
[388689955,1759319445753,-500.0,0.00021917,2]
[388689957,1759319445763,-500.0,0.00021917,2]
[388689959,1759319445772,-500.0,0.00021917,2]
[388689961,1759319445781,-500.0,0.00021917,2]
[388689964,1759319445792,-637.92,0.00021917,2]
[388689966,1759319445801,-3113.48,0.00021917,2]
[388689968,1759319445810,-721.01,0.00021917,2]
[388689970,1759319445819,-500.0,0.00021917,2]
[388689972,1759319445828,-1495.95,0.00021917,2]
[388689974,1759319445837,-388.40993421,0.00021917,2]
[388689976,1759319445849,-500.0,0.00021917,2]
[388689978,1759319445858,-1642.85,0.00021917,2]
[388689980,1759319445868,-1168.14,0.00021917,2]
[388689982,1759319445876,-500.0,0.00021917,2]
[388689984,1759319445886,-1244.29,0.00021917,2]
[388689986,1759319445895,-716.08,0.00021917,2]
[388689988,1759319445904,-502.78,0.00021917,2]
[388689990,1759319445913,-500.0,0.00021917,2]
[388689992,1759319445924,-2812.32,0.00021917,2]
[388689994,1759319445933,-500.0,0.00021917,2]
[388690011,1759319445942,-1579.23,0.00021917,2]
[388690016,1759319446093,-500.0,0.00021917,2]
[388690018,1759319446103,-501.73,0.00021917,2]
[388690020,1759319446112,-3798.1,0.00021917,2]
[388690022,1759319446125,-3784.05,0.00021917,2]
[388690024,1759319446134,-1300.64,0.00021917,2]
[388690026,1759319446143,-500.0,0.00021917,2]
[388690028,1759319446154,-229.9094989,0.00021917,2]
[388690030,1759319446163,-2815.84,0.00021917,2]
[388690032,1759319446174,-3888.87,0.00021917,2]
[388690034,1759319446182,-500.0,0.00021917,2]
[388690036,1759319446192,-3246.06,0.00021917,2]
[388690038,1759319446202,-589.43,0.00021917,2]
[388690040,1759319446211,-626.79,0.00021917,2]
[388690042,1759319446220,-500.0,0.00021917,2]
[388690044,1759319446229,-2461.81,0.00021917,2]
[388690046,1759319446238,-2548.44,0.00021917,2]
[388690048,1759319446247,-513.05,0.00021917,2]
[388690050,1759319446256,-500.0,0.00021917,2]
[388690052,1759319446265,-4418.4,0.00021917,2]
[388690054,1759319446275,-2713.99,0.00021917,2]
[388690055,1759319446286,-500.0,0.00021917,2]
[388690057,1759319446296,-1147.94,0.00021917,2]
[388690059,1759319446305,-2414.77,0.00021917,2]
[388690062,1759319446315,-1133.5,0.00021917,2]
[388690064,1759319446324,-22772.97,0.00021917,2]
[388690066,1759319446334,-500.0,0.00021917,2]
[388690068,1759319446343,-500.0,0.00021917,2]
[388690070,1759319446352,-500.0,0.00021917,2]
[388690072,1759319446362,-500.0,0.00021917,2]
[388690074,1759319446371,-500.0,0.00021917,2]
[388690076,1759319446380,-500.0,0.00021917,2]
[388690078,1759319446389,-1644.02,0.00021917,2]
[388690080,1759319446398,-500.0,0.00021917,2]
[388690082,1759319446408,-3974.84,0.00021917,2]
[388690084,1759319446418,-1163.9,0.00021917,2]
[388690086,1759319446428,-11947.65,0.00021917,2]
[388690088,1759319446437,-1106.17,0.00021917,2]
[388690090,1759319446447,-2006.68,0.00021917,2]
[388690092,1759319446456,-500.0,0.00021917,2]
[388690094,1759319446466,-1904.92,0.00021917,2]
[388690096,1759319446476,-500.0,0.00021917,2]
[388690098,1759319446486,-3102.73,0.00021917,2]
[388690100,1759319446496,-520.71,0.00021917,2]
[388690102,1759319446506,-500.0,0.00021917,2]
[388690104,1759319446515,-2163.0,0.00021917,2]
[388690106,1759319446525,-497.04714867,0.00021917,2]
[388690108,1759319446534,-500.0,0.00021917,2]
[388690110,1759319446543,-500.98,0.00021917,2]
[388690112,1759319446552,-500.0,0.00021917,2]
[388690114,1759319446562,-863.61,0.00021917,2]
[388690116,1759319446571,-1086.39,0.00021917,2]
[388690118,1759319446580,-664.83,0.00021917,2]
[388690120,1759319446589,-1535.06,0.00021917,2]
[388690122,1759319446598,-436.33,0.00021917,2]
[388690124,1759319446607,-500.0,0.00021917,2]
[388690126,1759319446617,-3867.93,0.00021917,2]
[388690128,1759319446626,-500.0,0.00021917,2]
[388690130,1759319446635,-918.69,0.00021917,2]
[388690132,1759319446646,-2739.31,0.00021917,2]
[388690134,1759319446656,-276.58608791,0.00021917,2]
[388690136,1759319446665,-1952.12,0.00021917,2]
[388690138,1759319446674,-2523.95,0.00021917,2]
[388690140,1759319446684,-500.0,0.00021917,2]
[388690142,1759319446693,-500.0,0.00021917,2]
[388690144,1759319446703,-1786.38,0.00021917,2]
[388690146,1759319446712,-1530.87,0.00021917,2]
[388690148,1759319446721,-4982.52,0.00021917,2]
[388690150,1759319446731,-2505.57,0.00021917,2]
[388690152,1759319446740,-4556.12,0.00021917,2]
[388690154,1759319446749,-1765.89,0.00021917,2]
[388690156,1759319446758,-2732.03,0.00021917,2]
[388690158,1759319446768,-1056.33,0.00021917,2]
[388690160,1759319446777,-552.64,0.00021917,2]
[388690162,1759319446787,-500.0,0.00021917,2]
[388690164,1759319446796,-16496.81,0.00021917,2]
[388690167,1759319446812,-1216.13,0.00021917,2]
[388690169,1759319446822,-528.32,0.00021917,2]
[388690171,1759319446831,-500.0,0.00021917,2]
[388690173,1759319446841,-500.0,0.00021917,2]
[388690175,1759319446850,-500.0,0.00021917,2]
[388690177,1759319446860,-500.0,0.00021917,2]
[388690179,1759319446869,-4803.22,0.00021917,2]
[388690181,1759319446878,-500.0,0.00021917,2]
[388690183,1759319446888,-500.0,0.00021917,2]
[388690185,1759319446897,-500.0,0.00021917,2]
[388690187,1759319446906,-1970.1,0.00021917,2]
[388690189,1759319446916,-888.29,0.00021917,2]
[388690191,1759319446927,-13206.46,0.00021917,2]
[388690193,1759319446937,-500.0,0.00021917,2]
[388690195,1759319446947,-2202.73,0.00021917,2]
[388690197,1759319446956,-666.98,0.00021917,2]
[388690199,1759319446966,-500.0,0.00021917,2]
[388690201,1759319446976,-8103.51,0.00021917,2]
[388690203,1759319446985,-616.15,0.00021917,2]
[388690205,1759319446995,-685.48,0.00021917,2]
[388690207,1759319447007,-3474.16,0.00021917,2]
[388690209,1759319447016,-2386.33,0.00021917,2]
[388690211,1759319447026,-500.0,0.00021917,2]
[388690213,1759319447037,-4756.98,0.00021917,2]
[388690215,1759319447045,-500.0,0.00021917,2]
[388690217,1759319447055,-609.9,0.00021917,2]
[388690219,1759319447065,-687.86,0.00021917,2]
[388690221,1759319447074,-500.0,0.00021917,2]
[388690223,1759319447083,-189.82789538,0.00021917,2]
[388690225,1759319447093,-500.0,0.00021917,2]
[388690227,1759319447102,-515.4,0.00021917,2]
[388690230,1759319447113,-3240.89,0.00021917,2]
[388690231,1759319447125,-2765.94,0.00021917,2]
[388690234,1759319447135,-5112.59,0.00021917,2]
[388690236,1759319447144,-549.54,0.00021917,2]
[388690238,1759319447153,-848.17,0.00021917,2]
[388690240,1759319447163,-2599.4,0.00021917,2]
[388690242,1759319447173,-616.00093866,0.00021917,2]
[388690244,1759319447183,-5609.92,0.00021917,2]
[388690246,1759319447192,-2831.64,0.00021917,2]
[388690248,1759319447204,-4823.67,0.00021917,2]
[388690250,1759319447214,-958.94,0.00021917,2]
[388690252,1759319447224,-500.0,0.00021917,2]
[388690254,1759319447233,-1299.81,0.00021917,2]
[388690256,1759319447243,-3435.97,0.00021917,2]
[388690258,1759319447254,-500.0,0.00021917,2]
[388690260,1759319447264,-1982.18,0.00021917,2]
[388690262,1759319447273,-2595.46,0.00021917,2]
[388690264,1759319447283,-500.0,0.00021917,2]
[388690266,1759319447292,-2377.65,0.00021917,2]
[388690268,1759319447301,-908.72,0.00021917,2]
[388690270,1759319447311,-823.05,0.00021917,2]
[388690272,1759319447320,-7892.89,0.00021917,2]
[388690274,1759319447329,-500.0,0.00021917,2]
[388690276,1759319447338,-1446.21,0.00021917,2]
[388690278,1759319447348,-1923.04,0.00021917,2]
[388690280,1759319447357,-2461.43,0.00021917,2]
[388690282,1759319447367,-813.32,0.00021917,2]
[388690284,1759319447376,-500.0,0.00021917,2]
[388690286,1759319447385,-4267.06,0.00021917,2]
[388690288,1759319447394,-861.33,0.00021917,2]
[388690290,1759319447404,-2300.72,0.00021917,2]